bitfinex/quotes_ETHUSD_20250223
["timestamp","ask_amount","ask_price","bid_price","bid_amount"]
[1740330442873,3.5509,2816.2,2815.9,0.07516455]
[1740330443234,3.5509,2816.2,2816.0,0.11109904]
[1740330443573,3.55077,2816.3,2816.1,0.07465635]
[1740330444897,3.55077,2816.3,2815.9,0.11109904]
[1740330445064,3.55077,2816.3,2816.0,0.07465635]
[1740330446187,3.55063,2816.4,2816.0,0.07465635]
[1740330446387,2.60162254,2816.7,2816.1,3.55093]
[1740330446688,3.55056,2816.5,2816.2,0.07434224]
[1740330447049,3.55056,2816.5,2816.0,3.66220904]
[1740330447393,3.55065,2816.4,2816.1,0.07434224]
[1740330447588,3.5507,2816.4,2816.1,0.07434224]
[1740330448092,3.5507,2816.4,2816.1,0.18544128]
[1740330448385,3.0,2816.6,2816.1,0.18544128]
[1740330448597,3.0,2816.6,2816.2,0.7882]
[1740330448749,7.10118,2816.5,2816.2,0.7882]
[1740330449187,7.10118,2816.5,2816.3,0.07434224]
[1740330449589,3.55059,2816.5,2816.3,0.07434224]
[1740330449797,3.55059,2816.5,2816.3,0.18544128]
[1740330450565,6.55044,2816.6,2816.3,0.18544128]
[1740330450891,3.0,2816.6,2816.3,0.18544128]
[1740330451095,0.26379631,2817.3,2816.3,0.18544128]
[1740330451096,4.36934,2817.0,2816.5,3.5505]
[1740330451278,3.54981,2817.1,2816.6,1.17125749]
[1740330451454,6.97048254,2817.4,2816.8,3.55005]
[1740330451658,3.54949,2817.3,2816.9,0.07401895]
[1740330451869,3.0,2817.2,2816.9,0.07401895]
[1740330452601,3.54955,2817.3,2816.8,3.55005]
[1740330452806,3.54939,2817.4,2816.9,3.54992]
[1740330453006,3.54939,2817.4,2817.0,0.8331]
[1740330453390,3.0,2817.5,2817.0,4.38295]
[1740330453565,3.5493,2817.5,2817.1,0.18511799]
[1740330453900,3.54921,2817.6,2817.1,3.73477799]
[1740330454107,3.54925,2817.5,2817.1,0.18511799]
[1740330454489,3.54925,2817.5,2817.1,0.99691679]
[1740330454892,3.54925,2817.5,2817.2,0.11109904]
[1740330455111,0.8194,2817.8,2817.2,0.11109904]
[1740330455112,3.54908,2817.7,2817.2,0.11109904]
[1740330455298,3.54911,2817.6,2817.3,0.07401895]
[1740330455496,3.54911,2817.6,2817.2,0.11109904]
[1740330455667,3.54926,2817.5,2817.3,0.07401895]
[1740330455869,3.54926,2817.5,2817.2,0.11109904]
[1740330456079,3.54937,2817.4,2817.3,0.07401895]
[1740330456294,3.54949,2817.3,2817.2,0.37509904]
[1740330456495,3.54949,2817.3,2817.2,0.18511799]
[1740330456699,3.54949,2817.3,2817.2,0.07401895]
[1740330458607,3.54974,2817.1,2817.0,0.264]
[1740330462825,3.55,2816.9,2816.8,0.11109904]
[1740330463659,3.54987,2817.0,2816.8,0.11109904]
[1740330463660,3.54987,2817.0,2816.8,1.66046716]
[1740330463935,3.54987,2817.0,2816.8,1.01668511]
[1740330464149,3.0,2817.4,2816.8,1.01668511]
[1740330464312,3.54975,2817.1,2816.8,1.01668511]
[1740330464512,3.54975,2817.1,2816.8,1.49976962]
[1740330465238,3.54975,2817.1,2816.8,0.18358511]
[1740330465239,3.55,2816.9,2816.8,0.18358511]
[1740330465397,6.55,2816.9,2816.8,0.18358511]
[1740330465839,6.55,2816.9,2816.8,0.11109904]
[1740330466859,3.55079,2816.3,2816.1,0.264]
[1740330467162,3.55088,2816.2,2816.1,0.264]
[1740330467339,3.55059,2816.5,2816.1,0.264]
[1740330467675,3.55033,2816.7,2816.2,0.459769]
[1740330467836,3.55038,2816.6,2816.2,0.459769]
[1740330468440,3.55075,2816.3,2816.2,0.459769]
[1740330468620,3.55088,2816.2,2816.1,0.264]
[1740330469172,3.55101,2816.1,2816.0,0.7826]
[1740330469464,3.55126,2815.9,2815.8,0.7826]
[1740330469678,3.55126,2815.9,2815.8,1.0466]
[1740330470622,3.55082,2816.3,2815.8,1.0466]
[1740330470781,3.55082,2816.3,2815.9,0.47091271]
[1740330470935,3.55126,2815.9,2815.8,0.7826]
[1740330471257,3.55126,2815.9,2815.8,0.264]
[1740330471977,3.55138,2815.8,2815.7,0.11109708]
[1740330472847,3.55138,2815.8,2815.6,0.264]
[1740330472848,3.55151,2815.7,2815.6,0.264]
[1740330476287,3.55176,2815.5,2815.4,0.86851017]
[1740330476588,3.55176,2815.5,2815.4,1.13251017]
[1740330476992,3.55176,2815.5,2815.4,0.37511017]
[1740330478641,3.55176,2815.5,2815.4,0.11111017]
[1740330479047,3.55176,2815.5,2815.4,0.17531289]
[1740330479451,4.36646,2815.5,2815.4,0.17531289]
[1740330479750,5.158271,2815.5,2815.4,0.17531289]
[1740330480143,5.158271,2815.5,2815.4,0.06420272]
[1740330480348,5.158271,2815.5,2815.1,0.264]
[1740330480598,3.55227,2815.1,2815.0,0.11111017]
[1740330480791,4.36697,2815.1,2815.0,0.11111017]
[1740330480992,8.514084,2815.1,2815.0,0.11111017]
[1740330481984,3.55304,2814.5,2814.3,1.0902]
[1740330482904,7.10574,2814.7,2814.3,1.0902]
[1740330483074,5.514114,2815.1,2814.3,1.0902]
[1740330483075,3.55299,2814.6,2814.3,1.0902]
[1740330483264,3.55308,2814.5,2814.3,1.0902]
[1740330483462,3.55315,2814.4,2814.2,0.11111017]
[1740330483677,3.55328,2814.3,2814.2,0.11111017]
[1740330484902,3.55328,2814.3,2814.1,1.0902]
[1740330485414,0.8147,2815.2,2814.2,0.8262]
[1740330485566,3.55265,2814.8,2814.3,3.55322]
[1740330485759,7.10539,2814.8,2814.3,3.55322]
[1740330486011,3.55297,2814.6,2814.4,0.79328]
[1740330486312,3.55277,2814.7,2814.2,4.37954]
[1740330486516,3.55273,2814.8,2814.3,3.55326]
[1740330486990,7.10548,2814.8,2814.3,3.55326]
[1740330487191,3.55273,2814.8,2814.3,3.55326]
[1740330487391,3.55297,2814.6,2814.2,0.8262]
[1740330487574,7.10598,2814.6,2814.2,1.353772]
[1740330487785,3.55328,2814.3,2814.2,0.8262]
[1740330488414,3.55328,2814.3,2814.2,1.0902]
[1740330489830,3.55297,2814.6,2814.2,1.0902]
[1740330490124,3.553,2814.6,2814.2,1.0902]
[1740330490729,3.55304,2814.5,2814.2,1.0902]
[1740330490931,3.55319,2814.4,2814.2,1.0902]
[1740330491583,3.55304,2814.5,2814.2,1.0902]
[1740330492429,6.55266,2814.8,2814.3,3.55322]
[1740330492731,6.55266,2814.8,2814.4,3.55309]
[1740330492928,3.0,2814.8,2814.4,3.55309]
[1740330493122,3.55227,2815.1,2814.5,0.8065]
[1740330493285,3.55309,2814.5,2814.3,0.8065]
[1740330493611,3.55291,2814.6,2814.4,0.06415186]
[1740330494286,3.55287,2814.7,2814.4,0.06415186]
[1740330494486,3.55302,2814.5,2814.4,0.06415186]
[1740330494984,3.55302,2814.5,2814.4,0.32815186]
[1740330495221,3.55287,2814.7,2814.4,0.32815186]
[1740330495427,3.55296,2814.6,2814.4,0.32815186]
[1740330495788,3.55302,2814.5,2814.4,0.32815186]
[1740330498127,3.55302,2814.5,2814.4,0.06415186]
[1740330498428,3.55328,2814.3,2814.2,0.264]
[1740330499731,3.55317,2814.4,2813.9,0.8065]
[1740330499732,3.55366,2814.0,2813.9,0.8065]
[1740330499921,3.55391,2813.8,2813.7,0.11115911]
[1740330500100,3.55391,2813.8,2813.7,0.37515911]
[1740330501029,3.55391,2813.8,2813.7,0.11115911]
[1740330501228,3.55403,2813.7,2813.6,0.11115911]
[1740330501784,7.38023,2813.7,2813.6,0.11115911]
[1740330503452,3.55482,2813.1,2812.9,0.32924537]
[1740330503814,3.55459,2813.3,2812.9,0.32924537]
[1740330504009,0.8262,2813.7,2813.0,0.8065]
[1740330504206,3.55492,2813.0,2812.9,0.32924537]
[1740330504422,3.55504,2812.9,2812.8,0.11115911]
[1740330504625,3.55504,2812.9,2812.8,0.37515911]
[1740330504826,3.55504,2812.9,2812.7,0.37515911]
[1740330505527,3.55517,2812.9,2812.8,0.32907519]
[1740330506366,4.266179,2812.9,2812.8,0.32907519]
[1740330506948,3.55517,2812.9,2812.8,0.32907519]
[1740330507150,3.55542,2812.6,2812.5,0.4402343]
[1740330507667,3.55531,2812.7,2812.5,0.4402343]
[1740330508042,3.55531,2812.7,2812.5,0.7042343]
[1740330508301,3.55542,2812.6,2812.5,0.7042343]
[1740330508652,3.55542,2812.6,2812.5,0.32367814]
[1740330509953,3.55542,2812.6,2812.5,0.50007192]
[1740330510296,7.266492,2812.6,2812.5,0.50007192]
[1740330510655,3.55542,2812.6,2812.5,0.50007192]
[1740330511067,3.55518,2812.8,2812.5,0.50007192]
[1740330511272,3.5553,2812.7,2812.5,0.17083725]
[1740330511484,3.5553,2812.7,2812.5,0.05967814]
[1740330512765,7.11023,2812.9,2812.5,0.05967814]
[1740330513075,3.55517,2812.8,2812.6,0.32923467]
[1740330513290,3.55517,2812.8,2812.6,0.39024741]
[1740330513596,0.7655,2813.0,2812.6,0.39024741]
[1740330513770,3.55511,2812.9,2812.6,0.39024741]
[1740330514289,3.55511,2812.9,2812.6,0.06101274]
[1740330514587,7.11025,2812.9,2812.6,0.06101274]
[1740330515203,3.55511,2812.9,2812.6,0.06101274]
[1740330515390,7.11026,2812.9,2812.7,0.32923467]
[1740330515591,7.11026,2812.9,2812.7,0.39031215]
[1740330516340,3.55517,2812.8,2812.7,0.39031215]
[1740330516839,3.55517,2812.8,2812.7,0.06107748]
[1740330519955,3.55517,2812.8,2812.5,0.32923467]
[1740330520118,3.55517,2812.8,2812.7,0.06107748]
[1740330520315,3.55517,2812.8,2812.5,0.32923467]
[1740330520529,3.55517,2812.8,2812.7,0.06107748]
[1740330520774,3.55517,2812.8,2812.6,0.32923467]
[1740330520920,3.55517,2812.8,2812.7,0.06107748]
[1740330522460,3.55517,2812.8,2812.5,0.32923467]
[1740330522681,3.55517,2812.8,2812.7,0.0611792]
[1740330522868,3.55517,2812.8,2812.5,0.32923467]
[1740330523028,3.55517,2812.8,2812.7,0.0611792]
[1740330523225,3.55542,2812.6,2812.5,0.32923467]
[1740330523562,3.55555,2812.5,2812.4,0.37515911]
[1740330523937,4.32105,2812.5,2812.4,0.37515911]
[1740330524748,4.32105,2812.5,2812.4,0.264]
[1740330524951,0.7655,2812.5,2812.4,0.264]
[1740330525157,4.32105,2812.5,2812.4,0.264]
[1740330525794,0.7655,2812.5,2812.4,0.264]
[1740330525969,3.55537,2812.7,2812.4,0.264]
[1740330526270,7.11078,2812.7,2812.4,0.264]
[1740330526470,3.55378,2813.9,2812.6,0.7929]
[1740330526629,0.7639,2814.0,2813.1,0.7929]
[1740330526826,0.431755,2813.9,2813.3,2.60162254]
[1740330527095,0.7639,2814.2,2813.6,3.55409]
[1740330527493,3.0,2814.0,2813.4,3.55433]
[1740330527659,3.55372,2814.0,2813.4,3.55433]
[1740330528365,3.55388,2813.9,2813.4,3.55433]
[1740330528663,3.55388,2813.9,2813.5,0.32944937]
[1740330528863,3.55388,2813.9,2813.5,0.44060848]
[1740330529059,4.31795,2813.7,2813.5,0.44060848]
[1740330529378,3.909248,2813.9,2813.5,0.70460848]
[1740330529695,3.55386,2813.9,2813.5,0.70460848]
[1740330530000,3.55402,2813.8,2813.5,0.70460848]
[1740330530202,3.55413,2813.7,2813.5,0.70460848]
[1740330530498,3.55413,2813.7,2813.6,0.44060848]
[1740330531795,0.7639,2814.0,2813.6,0.44060848]
[1740330532004,3.55366,2814.0,2813.6,0.44060848]
[1740330532496,3.55392,2813.8,2813.6,0.44060848]
[1740330533781,3.55392,2813.8,2813.7,0.44060848]
[1740330534007,3.55351,2814.2,2813.7,0.44060848]
[1740330534307,3.5534,2814.2,2813.8,3.55388]
[1740330537108,3.5534,2814.2,2813.8,0.44060848]
[1740330537307,3.55315,2814.4,2813.8,4.82500233]
[1740330537470,3.55334,2814.3,2813.8,4.82500233]
[1740330538187,3.55334,2814.3,2813.9,0.32944937]
[1740330538582,3.55334,2814.3,2814.0,0.05937623]
[1740330538583,3.55354,2814.1,2814.0,0.05937623]
[1740330539311,4.264231,2814.1,2814.0,0.05937623]
[1740330539517,7.31994,2814.1,2814.0,0.05937623]
[1740330539871,6.55366,2814.0,2813.9,0.11115911]
[1740330540301,3.55378,2813.9,2813.8,0.32944937]
[1740330540695,6.55366,2814.0,2813.6,0.264]
[1740330540897,3.55388,2813.9,2813.6,0.264]
[1740330542218,3.55388,2813.9,2813.6,0.59344937]
[1740330542904,3.55393,2813.8,2813.6,0.59344937]
[1740330543831,3.55393,2813.8,2813.6,0.264]
[1740330545013,3.55393,2813.8,2813.6,0.59344937]
[1740330545725,3.55403,2813.7,2813.6,0.59344937]
[1740330546942,3.55403,2813.7,2813.6,0.264]
[1740330547443,0.710796,2813.7,2813.3,0.44060848]
[1740330547650,3.55441,2813.4,2813.3,0.44060848]
[1740330547938,3.55441,2813.4,2813.3,0.11115911]
[1740330548704,3.55405,2813.7,2813.3,0.16859257]
[1740330548944,0.7657,2813.9,2813.4,0.7686]
[1740330549141,3.0,2813.9,2813.4,4.32296]
[1740330549447,3.55392,2813.8,2813.5,0.05765513]
[1740330549799,3.55406,2813.7,2813.5,0.05765513]
[1740330550239,3.55373,2814.0,2813.5,0.05765513]
[1740330550537,3.55373,2814.0,2813.5,0.16881424]
[1740330550741,3.55393,2813.8,2813.6,0.33001233]
[1740330550931,7.10792,2813.8,2813.6,0.33001233]
[1740330551133,7.10792,2813.8,2813.7,0.05759047]
[1740330551302,3.55393,2813.8,2813.7,0.05759047]
[1740330552448,3.55393,2813.8,2813.7,0.3876028]
[1740330552646,3.5538,2813.9,2813.7,0.3876028]
[1740330552819,3.55391,2813.8,2813.7,0.3876028]
[1740330554052,3.55391,2813.8,2813.7,0.49876191]
[1740330554229,4.264681,2813.8,2813.7,0.49876191]
[1740330558851,5.015881,2813.8,2813.7,0.49876191]
[1740330559048,8.015881,2813.8,2813.7,0.49876191]
[1740330559214,8.015881,2813.8,2813.7,0.44117144]
[1740330559642,8.72025719,2813.8,2813.7,1.15764542]
[1740330560154,8.72025719,2813.8,2813.7,1.21515277]
[1740330562353,8.72025719,2813.8,2813.7,1.15764542]
[1740330562727,7.96905719,2813.8,2813.7,1.21515277]
[1740330563655,7.25828619,2813.8,2813.7,1.21515277]
[1740330566335,4.25828619,2813.8,2813.7,1.21515277]
[1740330575394,7.25828619,2813.8,2813.7,1.21515277]
[1740330575763,7.25828619,2813.8,2813.7,1.15764542]
[1740330577050,8.05948619,2813.8,2813.7,1.15764542]
[1740330577297,9.22081481,2813.8,2813.7,1.15764542]
[1740330578274,1.3554,2813.6,2812.6,0.7976]
[1740330578483,3.55517,2812.8,2812.7,0.264]
[1740330578676,3.55517,2812.8,2812.7,0.31960721]
[1740330579853,3.55517,2812.8,2812.7,0.05560721]
[1740330580053,4.346733,2812.8,2812.2,0.7976]
[1740330580257,3.5558,2812.3,2812.2,0.7976]
[1740330580502,3.5558,2812.3,2812.2,1.0616]
[1740330580852,3.55547,2812.6,2812.2,1.0616]
[1740330581286,3.55577,2812.4,2812.2,1.0616]
[1740330581902,3.5555,2812.6,2812.2,1.0616]
[1740330582084,3.55555,2812.5,2812.2,1.0616]
[1740330582760,3.5555,2812.6,2812.2,1.0616]
[1740330582961,3.55517,2812.8,2812.2,1.0616]
[1740330583162,3.5558,2812.3,2812.2,1.0616]
[1740330583360,3.55576,2812.4,2812.2,1.0616]
[1740330583602,7.11152,2812.4,2812.2,1.0616]
[1740330583783,3.55576,2812.4,2812.3,0.05560721]
[1740330584161,3.55618,2812.0,2811.9,0.8192]
[1740330584458,3.55618,2812.0,2811.4,2.60162254]
[1740330584459,3.55647,2811.8,2811.7,0.264]
[1740330584689,3.55647,2811.8,2811.5,0.8192]
[1740330584690,3.55666,2811.7,2811.5,0.8192]
[1740330584858,3.55669,2811.6,2811.5,0.8192]
[1740330585067,3.55669,2811.6,2811.5,0.264]
[1740330587267,3.55694,2811.4,2811.3,0.8192]
[1740330587565,3.55682,2811.5,2811.3,1.0832]
[1740330587968,3.55704,2811.4,2811.3,0.264]
[1740330588388,3.0,2812.0,2811.4,0.7811]
[1740330588389,0.8073,2812.0,2811.4,0.7811]
[1740330588592,3.55664,2811.7,2811.4,0.7811]
[1740330588975,3.8073,2812.0,2811.4,0.7811]
[1740330589318,3.55676,2811.6,2811.4,0.7811]
[1740330589657,6.55652,2811.8,2811.4,0.7811]
[1740330589903,5.09992,2812.0,2811.4,0.7811]
[1740330590075,3.55662,2811.7,2811.4,0.7811]
[1740330590274,3.55657,2811.7,2811.4,0.7811]
[1740330590510,7.11303,2811.8,2811.4,0.7811]
[1740330590670,3.5565,2811.8,2811.4,0.7811]
[1740330590881,3.55657,2811.7,2811.4,0.7811]
[1740330591265,3.5565,2811.8,2811.4,0.7811]
[1740330591471,3.55664,2811.7,2811.4,0.7811]
[1740330591873,3.8073,2812.0,2811.4,0.7811]
[1740330592073,3.55651,2811.8,2811.4,0.7811]
[1740330592308,3.55656,2811.7,2811.4,0.7811]
[1740330592506,3.55633,2811.9,2811.4,1.11082569]
[1740330592690,3.55651,2811.8,2811.4,1.11082569]
[1740330593291,3.55644,2811.8,2811.4,1.11082569]
[1740330594215,3.55644,2811.8,2811.4,1.22210245]
[1740330595019,3.55656,2811.8,2811.4,1.22210245]
[1740330596606,3.55656,2811.8,2811.4,0.89237676]
[1740330598104,3.55644,2811.8,2811.4,0.89237676]
[1740330598773,3.55644,2811.8,2811.5,0.0530011]
[1740330600415,3.55651,2811.8,2811.5,0.0530011]
[1740330600721,3.55658,2811.7,2811.5,0.0530011]
[1740330600884,3.55669,2811.6,2811.5,0.0530011]
[1740330601281,4.268017,2811.6,2811.5,0.0530011]
[1740330601495,7.33592,2811.5,2811.4,0.32963474]
[1740330601984,6.55694,2811.4,2811.3,0.32963474]
[1740330602619,7.10694,2811.4,2810.8,0.11127676]
[1740330602788,3.55757,2810.9,2810.8,0.11127676]
[1740330602989,3.55757,2810.9,2810.6,1.0185]
[1740330603187,0.7791,2811.3,2810.6,1.0185]
[1740330603188,4.33628,2811.3,2810.6,1.0185]
[1740330603422,0.7791,2811.3,2810.7,3.55772]
[1740330603584,6.55697,2811.4,2810.7,3.55772]
[1740330603921,3.0,2811.4,2810.9,2.60162254]
[1740330604129,3.0,2811.4,2811.0,0.7545]
[1740330605007,6.557,2811.4,2811.0,0.7545]
[1740330605686,7.11275,2811.9,2811.2,6.15872254]
[1740330605886,3.0,2811.8,2811.2,6.15872254]
[1740330606128,0.8033,2811.9,2811.0,1.45700293]
[1740330606422,6.55675,2811.6,2811.0,0.7545]
[1740330606724,3.0,2811.6,2811.0,0.7545]
[1740330607192,4.3597,2811.9,2811.1,3.55723]
[1740330607381,4.3597,2811.9,2811.0,0.7545]
[1740330607719,3.0,2811.7,2811.1,7.11464]
[1740330607926,0.8033,2811.9,2811.3,3.55698]
[1740330608224,0.8033,2811.9,2811.4,0.7702]
[1740330608225,3.8033,2811.9,2811.4,0.7702]
[1740330608385,0.8033,2811.9,2811.4,1.0342]
[1740330608591,3.55644,2811.8,2811.4,1.0342]
[1740330609095,3.0,2811.9,2811.4,1.0342]
[1740330609301,3.0,2811.9,2811.5,0.11127676]
[1740330610496,0.8033,2812.1,2811.5,0.11127676]
[1740330610729,3.55652,2811.8,2811.5,0.11127676]
[1740330611034,3.55652,2811.8,2811.6,0.11127676]
[1740330611397,6.55631,2811.9,2811.6,0.11127676]
[1740330611931,3.55645,2811.8,2811.6,0.11127676]
[1740330612131,6.55632,2811.9,2811.6,0.11127676]
[1740330612604,6.55632,2811.9,2811.7,0.11127676]
[1740330612943,3.55644,2811.8,2811.7,0.11127676]
[1740330613103,6.55632,2811.9,2811.7,0.11127676]
[1740330613796,6.55632,2811.9,2811.8,0.16502711]
[1740330615330,7.647901,2811.9,2811.8,0.16502711]
[1740330615529,7.647901,2811.9,2811.8,0.11127676]
[1740330615953,8.403001,2811.9,2811.8,0.11127676]
[1740330616123,8.953001,2811.9,2811.8,0.11127676]
[1740330616664,3.55669,2811.6,2811.5,0.11127676]
[1740330616806,4.268017,2811.6,2811.5,0.11127676]
[1740330617213,5.023117,2811.6,2811.5,0.11127676]
[1740330617910,5.023117,2811.6,2811.5,0.1648976]
[1740330618313,5.023117,2811.6,2811.5,0.11127676]
[1740330618950,4.268017,2811.6,2811.5,0.1648976]
[1740330619159,3.55669,2811.6,2811.5,0.11127676]
[1740330619313,7.10682,2811.5,2811.4,4.37e-06]
[1740330619662,3.55816,2810.5,2810.3,1.025]
[1740330619815,3.55821,2810.4,2810.3,0.264]
[1740330620217,3.55821,2810.4,2810.1,8.752]
[1740330620218,3.55846,2810.2,2810.1,8.752]
[1740330620517,3.5584,2810.3,2810.1,9.016]
[1740330620916,3.55823,2810.4,2810.1,9.016]
[1740330621215,3.55829,2810.4,2810.1,9.016]
[1740330621412,3.55846,2810.2,2810.1,9.016]
[1740330621832,3.55831,2810.4,2810.1,9.016]
[1740330622161,3.55836,2810.3,2810.1,9.016]
[1740330622331,4.31315,2810.6,2810.1,9.016]
[1740330622534,0.7551,2810.9,2810.3,2.60162254]
[1740330622768,3.55783,2810.7,2810.3,2.60162254]
[1740330623363,3.55777,2810.8,2810.3,2.60162254]
[1740330623662,10.86964,2811.2,2810.5,4.31899]
[1740330623829,3.0,2811.1,2810.7,3.5578]
[1740330624032,3.55709,2811.3,2810.7,3.55776]
[1740330624220,3.55694,2811.4,2810.8,4.31866]
[1740330624676,3.55726,2811.2,2810.8,0.761]
[1740330625017,3.55717,2811.3,2810.8,0.761]
[1740330625754,3.55717,2811.3,2810.8,4.31869]
[1740330626141,3.55722,2811.2,2810.8,0.761]
[1740330626623,3.55717,2811.3,2810.8,0.761]
[1740330627023,3.55717,2811.3,2810.9,0.04241469]
[1740330628499,3.0,2811.4,2810.9,0.04241469]
[1740330628649,3.0,2811.4,2811.0,3.55745]
[1740330629174,3.0,2811.4,2811.1,0.04241469]
[1740330629967,6.55702,2811.4,2811.1,0.04241469]
[1740330630123,1.011392,2811.4,2811.1,0.04241469]
[1740330630318,3.55719,2811.2,2810.9,0.264]
[1740330630740,3.55704,2811.4,2810.9,0.264]
[1740330630943,3.55714,2811.3,2810.9,0.264]
[1740330631270,4.32083,2811.7,2810.6,0.264]
[1740330631271,3.55757,2810.9,2810.6,0.264]
[1740330632324,3.55745,2811.0,2810.6,0.264]
[1740330632629,3.913435,2810.9,2810.6,0.264]
[1740330632827,3.55798,2810.6,2810.3,0.7589]
[1740330633063,3.55798,2810.6,2810.4,0.264]
[1740330633228,0.7746,2810.8,2810.1,0.7589]
[1740330633431,3.55828,2810.4,2810.1,1.0229]
[1740330634263,3.55835,2810.3,2810.1,1.0229]
[1740330634568,7.1166,2810.4,2810.0,0.264]
[1740330635376,3.55846,2810.2,2810.1,0.11132974]
[1740330635959,4.33295,2810.3,2810.1,0.11132974]
[1740330636275,3.55814,2810.5,2810.1,0.11132974]
[1740330636460,7.33257,2810.6,2810.1,0.11132974]
[1740330636658,3.55814,2810.5,2810.1,0.11132974]
[1740330637136,7.11631,2810.5,2810.2,0.11132974]
[1740330637337,8.205401,2810.5,2810.2,0.11132974]
[1740330637680,3.55833,2810.3,2810.2,0.11132974]
[1740330637977,3.55824,2810.4,2810.2,0.11132974]
[1740330638681,3.55824,2810.4,2809.9,0.11132974]
[1740330638831,3.55841,2810.3,2809.9,0.11132974]
[1740330639749,3.55853,2810.2,2809.9,0.11132974]
[1740330639950,3.55835,2810.3,2810.0,0.11132974]
[1740330640867,3.55854,2810.2,2810.0,0.11132974]
[1740330641078,4.33319,2810.1,2810.0,0.11132974]
[1740330641772,4.33319,2810.1,2809.8,0.264]
[1740330641978,4.33319,2810.1,2809.7,0.264]
[1740330642182,3.55877,2810.0,2809.7,0.264]
[1740330642836,3.55877,2810.0,2809.6,0.264]
[1740330643607,4.347962,2810.0,2809.6,0.264]
[1740330643761,3.55894,2809.9,2809.7,0.19514198]
[1740330644679,3.55884,2809.9,2809.7,0.19514198]
[1740330644873,4.26754752,2809.8,2809.7,0.19514198]
[1740330645379,4.26754752,2809.8,2809.7,0.08379405]
[1740330645677,4.26754752,2809.8,2809.5,0.11134793]
[1740330646065,3.55909,2809.7,2809.6,0.08111012]
[1740330646439,0.70700988,2809.7,2809.6,0.08111012]
[1740330647256,4.26609988,2809.7,2809.6,0.19245805]
[1740330647461,5.04860687,2809.7,2809.6,0.19245805]
[1740330647666,5.87960687,2809.7,2809.6,0.19245805]
[1740330648991,5.87960687,2809.7,2809.6,0.08111012]
[1740330649290,3.55923,2809.6,2809.4,0.11134793]
[1740330649594,3.55923,2809.6,2809.5,0.08115639]
[1740330650671,4.39011,2809.7,2809.5,0.19250432]
[1740330650880,0.8175,2809.9,2809.5,0.19250432]
[1740330651199,3.5589,2809.9,2809.5,0.98750432]
[1740330651570,3.55907,2809.8,2809.5,0.98750432]
[1740330651774,3.5591,2809.7,2809.5,0.98750432]
[1740330651959,3.5589,2809.9,2809.5,0.98750432]
[1740330652162,3.55893,2809.9,2809.5,0.87615639]
[1740330652657,3.55902,2809.8,2809.5,0.87615639]
[1740330653059,3.55922,2809.6,2809.5,0.08115639]
[1740330653385,3.55935,2809.5,2809.4,0.11134793]
[1740330653561,6.55935,2809.5,2809.4,0.11134793]
[1740330653762,6.55935,2809.5,2809.4,0.01134793]
[1740330653963,3.55966,2809.3,2809.1,0.005]
[1740330654263,3.55969,2809.3,2809.1,0.005]
[1740330654503,3.55969,2809.3,2809.2,0.08149878]
[1740330654672,4.449516,2809.5,2809.2,0.08149878]
[1740330654673,6.55943,2809.5,2809.2,0.08149878]
[1740330654873,3.0,2809.5,2809.2,0.08149878]
[1740330655071,3.5596,2809.3,2809.2,0.08149878]
[1740330656263,4.3771,2809.3,2809.2,0.08149878]
[1740330656578,3.5596,2809.3,2809.2,0.08149878]
[1740330656788,3.655931,2809.5,2809.2,0.08149878]
[1740330656967,3.5596,2809.3,2809.2,0.08149878]
[1740330658001,4.6370881,2809.3,2809.2,0.08149878]
[1740330658361,5.4545881,2809.3,2809.2,0.08149878]
[1740330658562,1.0774881,2809.3,2809.2,0.08149878]
[1740330658789,7.215331,2809.5,2809.2,0.08149878]
[1740330658790,6.5594,2809.5,2809.2,0.08149878]
[1740330658994,3.5596,2809.3,2809.2,0.08149878]
[1740330659189,6.5594,2809.5,2809.2,0.08149878]
[1740330659680,3.0,2809.5,2809.2,0.08149878]
[1740330659887,6.55937,2809.5,2809.2,0.08149878]
[1740330660081,7.6791327,2809.5,2809.2,0.08149878]
[1740330660710,7.6791727,2809.5,2809.2,0.08149878]
[1740330660874,3.5596,2809.3,2809.2,0.08149878]
[1740330661995,3.55949,2809.4,2809.2,0.08149878]
[1740330662174,3.5596,2809.3,2809.2,0.08149878]
[1740330662723,3.55949,2809.4,2809.2,0.08149878]
[1740330662880,4.68348527,2809.3,2809.2,0.08149878]
[1740330663082,3.0,2809.5,2809.2,0.08149878]
[1740330663486,6.55935,2809.5,2809.2,0.08149878]
[1740330664303,3.55935,2809.5,2809.2,0.08149878]
[1740330664473,3.0,2809.8,2809.2,0.08149878]
[1740330664474,0.8175,2809.8,2809.3,3.5596]
[1740330664674,3.55942,2809.5,2809.2,0.795]
[1740330664909,3.55942,2809.5,2809.1,0.005]
[1740330665377,3.55934,2809.6,2809.1,0.005]
[1740330665713,3.55942,2809.5,2809.2,0.08176721]
[1740330666678,3.55945,2809.5,2809.2,0.08176721]
[1740330666885,3.55934,2809.6,2809.2,0.08176721]
[1740330667211,3.55932,2809.6,2809.2,0.08176721]
[1740330667383,7.11864,2809.6,2809.2,0.08176721]
[1740330667816,3.55932,2809.6,2809.2,0.08176721]
[1740330668011,11.69230839,2809.8,2809.2,3.64145721]
[1740330668220,10.87476839,2809.8,2809.3,4.35039]
[1740330668369,7.31571839,2809.8,2809.3,4.04009]
[1740330668573,3.55911,2809.7,2809.3,4.04009]
[1740330668775,3.55897,2809.8,2809.4,0.08176721]
[1740330669015,0.842692,2809.8,2809.6,3.55914]
[1740330669180,3.0,2809.9,2809.5,3.55932]
[1740330669380,3.0,2809.9,2809.7,0.08211892]
[1740330669581,4.31793,2810.0,2809.5,3.55932]
[1740330669877,0.7591,2810.0,2809.3,0.4805]
[1740330670108,0.7591,2810.0,2809.1,0.005]
[1740330670109,0.7591,2809.6,2809.1,0.005]